Cogmind - Beta 9 @@@ ROGUE MODE // 2019.10.26 @ 11:47:46 Player: Mr.Manatee Result: Self-destructed Performance ------------- Evolutions (1) 500 Regions Visited (2) 400 Robots Destroyed (12) 60 Value Destroyed (330) 330 Prototype IDs (0) 0 Alien Tech Used (0) 0 Bonus (0) 0 TOTAL SCORE: 1290 Bonus ------- None Cogmind --------- Core Integrity 400/400 Matter 300/300 Energy 230/250 System Corruption 0% Temperature Cool (48) Location -9/Materials Parts ------- Power (1) Ion Engine Propulsion (3) Aluminum Leg Aluminum Leg Utility (3) Small Storage Unit Targeting Computer Weapon (2) Heavy EM Pulse Gun Heavy EM Pulse Gun Inventory (6) Light Ion Engine Light Treads Light Treads Heavy EM Pulse Gun Heavy EM Pulse Gun Peak State ------------ Power Ion Engine Propulsion Aluminum Leg Aluminum Leg Utility Small Storage Unit Targeting Computer Weapon Heavy EM Pulse Gun Heavy EM Pulse Gun Inventory Light Ion Engine Light Treads Light Treads Compact Wheel Heavy EM Pulse Gun Heavy EM Pulse Gun [Rating: 9] Favorites ----------- Power Ion Engine Engine Ion Engine Propulsion Aluminum Leg Leg Aluminum Leg Utility Small Storage Unit Storage Small Storage Unit Processor Targeting Computer Weapon Heavy EM Pulse Gun Energy Gun Heavy EM Pulse Gun Build | -11 -10 -9 ------- Run | Scr Mat Mat Slots Evolved 2 | . . 2 Power . | . . . Propulsion 1 | . . 1 Utility 1 | . . 1 Weapon . | . . . Parts Attached 10 | 7 3 . Power 2 | 2 . . Engine 2 | 2 . . Core . | . . . Reactor . | . . . Propulsion 2 | 2 . . Treads . | . . . Leg 2 | 2 . . Wheel . | . . . Hover . | . . . Flight . | . . . Utility 2 | 1 1 . Device . | . . . Storage 1 | 1 . . Processor 1 | . 1 . Hackware . | . . . Protection . | . . . Artifact . | . . . Weapon 4 | 2 2 . Energy Gun 4 | 2 2 . Energy Cannon . | . . . Ballistic Gun . | . . . Ballistic Cannon . | . . . Launcher . | . . . Special Weapon . | . . . Impact Weapon . | . . . Slashing Weapon . | . . . Piercing Weapon . | . . . Special Melee Weapon . | . . . Unidentified Prototypes . | . . . Parts Lost . | . . . Power . | . . . Propulsion . | . . . Utility . | . . . Weapon . | . . . Highest Loss Streak . | . . . Average Slot Usage (%) 91 | . 93 77 Engine 13 | . 14 11 Leg 27 | . 28 22 Storage 13 | . 14 11 Processor 8 | . 8 11 Energy Gun 27 | . 28 22 Naked Turns . | . . . Heaviest Build 15 | 12 15 15 Greatest Support 20 | 20 20 20 Greatest Overweight (x) . | . . . Average Overweight (x) . | . . . Largest Inventory Capacity 6 | 6 6 6 Average Capacity 5 | 5 6 6 Most Carried 6 | 6 6 5 Average Carried 5 | 2 5 5 Final Capacity 6 | . . 6 Final Carried 5 | . . 5 Class Distribution -------------------- 100% | Mutant Dominant Class ---------------- Mutant | -10/Materials Mutant | -9/Materials Resources | -11 -10 -9 ----------- Run | Scr Mat Mat Matter Collected 300 | 206 94 . Remotely . | . . . Salvage Created 602 | . 445 157 Parts 34 | . 21 13 Haulers Intercepted 2 | . 2 . Recyclers Shooed 1 | . 1 . Parts Field Recycled . | . . . Retrieved Matter . | . . . Parts Self-Destructed . | . . . Prevented . | . . . Kills | -11 -10 -9 ------- Run | Scr Mat Mat Combat Hostiles Destroyed 8 | . 5 3 Guns 5 | . 4 1 AOE 3 | . 1 2 Classes Destroyed 6 | . 4 2 Worker 1 | . 1 . Hauler 2 | . 2 . Recycler 1 | . 1 . Grunt 6 | . 5 1 Duelist 1 | . . 1 Sentry 1 | . . 1 Best Kill Streak 4 | . 4 3 Combat Bots Only 3 | . 2 3 Max Kills in Single Turn 3 | . 2 3 Gunslinging . | . . . Exploded 2 | . 1 2 Melee . | . . . Uniques/NPCs Destroyed . | . . . Combat | -11 -10 -9 -------- Run | Scr Mat Mat Damage Taken 129 | . 119 10 Core . | . . . Absorbed by Shields . | . . . Core Remaining (%) 100 | 100 100 . Volleys Fired 18 | . 16 2 Largest 2 | . 2 2 Hottest 90 | . 90 90 Shots Fired 36 | . 32 4 Gun 36 | . 32 4 Cannon . | . . . Launcher . | . . . Special . | . . . Kinetic . | . . . Thermal . | . . . Explosive . | . . . Electromagnetic 36 | . 32 4 Robot Hit Streak 9 | . 9 7 Robot Miss Streak 3 | . 3 . Penetration Max . | . . . Secondary Targets 2 | . 1 1 Max Gunslinging Chain 1 | . 1 1 Shots Hit Robots 23 | . 19 4 Core Hits 15 | . 11 4 Critical Hits . | . . . Critical Kills . | . . . Critical Parts Destroyed . | . . . Melee Attacks . | . . . Impact . | . . . Slashing . | . . . Piercing . | . . . Sneak Attacks . | . . . Combat Hostiles . | . . . Follow-up Attacks . | . . . Damage Inflicted 578 | . 429 149 Guns 357 | . 304 53 Cannons . | . . . Explosions 221 | . 125 96 Melee . | . . . Ramming . | . . . Kinetic . | . . . Thermal 221 | . 125 96 Explosive . | . . . Electromagnetic 357 | . 304 53 Impact . | . . . Slashing . | . . . Piercing . | . . . Highest Corruption . | . . . Average Corruption . | . . . Corruption Purged . | . . . Overload Shots . | . . . Overflow Damage . | . . . Projectiles . | . . . Explosions . | . . . Melee . | . . . Knockbacks . | . . . Impact . | . . . Kinetic . | . . . Secondary . | . . . Self-Inflicted Damage . | . . . Shots . | . . . Rammed . | . . . Targets Rammed . | . . . Kicked . | . . . Crushed . | . . . Highest Temperature 279 | . 279 48 Average Temperature 80 | . 84 27 Received Heat Transfer 75 | . 69 6 Siege Activations . | . . . Robots Corrupted . | . . . Combat Hostiles . | . . . Parts Fried 1 | . 1 . Impact Corruptions . | . . . Robots Melted . | . . . Combat Hostiles . | . . . Parts Melted . | . . . Heat Transferred 250 | . 150 100 Parts Sabotaged . | . . . Parts Stolen . | . . . Parts Stripped . | . . . Power Chain Reactions 2 | . 1 1 Missiles Intercepted . | . . . Alert | -11 -10 -9 ------- Run | Scr Mat Mat Peak Influence 234 | . 234 193 Average Influence 74 | . 95 110 Maximum Alert Level 1 | . 1 . Low Security (%) 90 | . . . Level 1 9 | . . . Level 2 . | . . . Level 3 . | . . . Level 4 . | . . . Level 5 . | . . . High Security . | . . . Max Security . | . . . Squads Dispatched 1 | . 1 . Investigation 1 | . 1 . Extermination . | . . . Reinforcement . | . . . Assault . | . . . Garrison . | . . . Intercept . | . . . Construction Impeded . | . . . Haulers Reinforced . | . . . Stealth | -11 -10 -9 --------- Run | Scr Mat Mat Distress Signals . | . . . Communications Jammed . | . . . Distress Signals . | . . . Times Spotted 11 | . 8 3 Peak Tracking Total 5 | . 3 5 Tactical Retreats . | . . . Traps | -11 -10 -9 ------- Run | Scr Mat Mat Traps Triggered . | . . . Indirectly . | . . . Trap Hack Attempts . | . . . Triggered . | . . . Disarmed . | . . . Reprogrammed . | . . . Reused . | . . . Traps Extracted . | . . . Installed . | . . . Triggered . | . . . Machines | -11 -10 -9 ---------- Run | Scr Mat Mat Machines Disabled 1 | . 1 . Max in Single Turn 1 | . 1 . Machines Sabotaged . | . . . Garrisons Compromised . | . . . Overloaded Fab Kills . | . . . Fab Network Shutdowns . | . . . Hacking | -11 -10 -9 --------- Run | Scr Mat Mat Machines Accessed 3 | . 3 . Terminals 2 | . 2 . Fabricators . | . . . Repair Stations . | . . . Recycling Units 1 | . 1 . Scanalyzers . | . . . Garrison Access . | . . . Total Hacks 8 | . 8 . Successful 3 | . 3 . Failed 5 | . 5 . Catastrophic . | . . . Database Lockouts . | . . . Manual 6 | . 6 . Terminals 5 | . 5 . Fabricators . | . . . Repair Stations . | . . . Recycling Units 3 | . 3 . Scanalyzers . | . . . Garrison Access . | . . . Terminal Hacks 1 | . 1 . Locate Traps 1 | . 1 . Fabricator Hacks . | . . . Repair Station Hacks . | . . . Recycling Unit Hacks 1 | . 1 . Report Inventory 1 | . 1 . Scanalyzer . | . . . Garrison Access Hacks . | . . . Unauthorized Hacks 7 | . 7 . Terminals . | . . . Fabricators . | . . . Repair Stations . | . . . Recycling Units 1 | . 1 . Tunnel 1 | . 1 . Scanalyzers . | . . . Garrison Access . | . . . Data Cores Recovered . | . . . Used . | . . . Hacking Detections 2 | . 2 . Full Trace Events 1 | . 1 . Feedback Events . | . . . Feedback Blocked . | . . . Robot Schematics Acquired . | . . . Robots Built . | . . . Matter . | . . . Time . | . . . Total Robot Build Rating . | . . . Part Schematics Acquired . | . . . Parts Built . | . . . Matter . | . . . Time . | . . . Total Part Build Rating . | . . . Parts Repaired . | . . . Time . | . . . Parts Recycled . | . . . Recycled Matter . | . . . Retrieved Matter . | . . . Retrieved Components . | . . . Parts Scanalyzed . | . . . Part Schematics Acquired . | . . . Parts Damaged . | . . . Bothacking | -11 -10 -9 ------------ Run | Scr Mat Mat Used RIF Installer . | . . . Robots Hacked . | . . . Non-combat . | . . . Combat . | . . . Robot Hacks Applied . | . . . Relay Couplers Released . | . . . Robots Rewired . | . . . Allies Hacked . | . . . Hacks Repelled . | . . . Allies | -11 -10 -9 -------- Run | Scr Mat Mat Total Allies . | . . . Largest Group . | . . . Highest-Rated Group . | . . . Highest-Rated Ally . | . . . Total Orders . | . . . Ally Attacks . | . . . Total Damage . | . . . Kills . | . . . Allies Corrupted . | . . . Allies Melted . | . . . Intel | -11 -10 -9 ------- Run | Scr Mat Mat Robot Analysis Total . | . . . Derelict Logs Recovered . | . . . Drone Launches . | . . . Drone Recoveries . | . . . Exploration | -11 -10 -9 ------------- Run | Scr Mat Mat Turns Passed 310 | 73 210 27 Spaces Moved 199 | 54 128 17 Core 10 | 10 . . Treads . | . . . Legs 189 | 44 128 17 Wheels . | . . . Hover . | . . . Flight . | . . . Fastest Speed 50 | 50 120 120 Average Speed 116 | 107 120 120 Slowest Speed 120 | 120 120 120 Overloaded Moves . | . . . Propulsion Burnouts . | . . . Robots Hopped . | . . . Cave-ins Triggered . | . . . Exploration Rate (%) 14 | 4 36 4 Regions Visited 2 Branch Regions . Pre-discovered Areas 1 | . 1 . Known Exits Taken . | . . . Unknown Exits Taken 2 | 1 1 . Scrap Searched . | . . . Spaces Dug . | . . . Terrain Destroyed 7 | . 2 5 Melee . | . . . Projectile . | . . . AOE 7 | . 2 5 Actions | -11 -10 -9 --------- Run | Scr Mat Mat Total 239 | 66 153 20 Wait 1 | . 1 . Move 197 | 53 127 17 Hop . | . . . Pick Up 7 | 5 2 . Fast Attach 10 | 7 3 . Attach . | . . . Detach 1 | 1 . . Swap . | . . . Drop 5 | . 4 1 Fire 18 | . 16 2 Melee . | . . . Ram . | . . . Kick . | . . . Crush . | . . . Escape Stasis . | . . . Rewire . | . . . Trap . | . . . Miscellaneous . | . . . Route ------- -11/Scrapyard -10/Materials -9/Materials History --------- Turn | Location | Event 7 | -11/Scrapyard | Discovered new exit (range 16) 74 | -11/Scrapyard | Entered Materials 266 | -10/Materials | Discovered new exit (range 16) 284 | -10/Materials | Entered another Materials area 284 | -9/Materials | Evolved 2 slots: Propulsion x1, Utility x1 305 | -9/Materials | Build established: Mutant 311 | -9/Materials | Self-destructed Last Messages --------------- 00257_ K-01 Serf collects debris. 00265_ Connecting with Terminal... 00266_ K-01 Serf collects debris. 00266_ EXIT=FOUND 00267_ K-01 Serf collects debris. 00271_ R-06 Scavenger collects Med. Storage Unit. 00274_ K-01 Serf collects debris. 00276_ O-16 Technician: "IFF HANDSHAKE FAILED. SECURING TERMINAL." 00277_ K-01 Serf collects debris. 00278_ O-16 Technician: "IFF HANDSHAKE FAILED. SECURING TERMINAL." 00280_ K-01 Serf collects debris. PARAMETERS=PROPULSION_1,UTILITY_1 LOCATION=UNKNOWN GOAL=ESCAPE 00284_ Dropped Com. Wheel. 00308_ Y-45 Defender destroyed. 00308_ Switching to secondary target: L-31 Rogue. 00308_ Chain reaction triggered in Imp. Ion Engine. 00308_ L-31 Rogue destroyed. 00308_ G-34 Mercenary destroyed. Map ----- +----------------------------------------------------+ | | | | | | | | | | | | | | | ?????????????????????????????????????????????????? | | ?????????????????????????????????????????????????? | | ?????????????????????????????????????????????????? | | ?????????????????????????????????????????????????? | | ?????????????????????????????????????????????????? | | ?????????????????????????????????????????????????? | | ?????????????????????????????????????????????????? | | ?????????????????????????????????????????????????? | | ?????????????????????????????############????????? | | ?????????????????????????????# # #????????? | | ?????????????????????????????# = # """ #????????? | | ?????????????????????????????# # """ #????????? | | ?????????????????????????????# + """ #????????? | | ?????????????????????????????# # #????????? | | ?????????????????????????????# # #????????? | | ?????????????????????????????# ########????????? | | ?????????????????????????????# #???????????????? | | ?????????????????############# #???????????????? | | ??????????=!a @ #???????????????? | | ??????????*=[ %/=* ????????? | | ????????????# ############## !%= ????? | | ?????????????????????????????# = ?????? | | ?????????????????????????????# ?????? | | ?????????????????????????????######### ??????? | | ??????????????????????????????????????? """ ?????? | | ????????????????????????????????????????""???????? | | ?????????????????????????????????????????????????? | | ?????????????????????????????????????????????????? | | ?????????????????????????????????????????????????? | | ?????????????????????????????????????????????????? | | ?????????????????????????????????????????????????? | | ?????????????????????????????????????????????????? | | ?????????????????????????????????????????????????? | | ?????????????????????????????????????????????????? | | ?????????????????????????????????????????????????? | | ?????????????????????????????????????????????????? | | ?????????????????????????????????????????????????? | | ?????????????????????????????????????????????????? | | ?????????????????????????????????????????????????? | | ?????????????????????????????????????????????????? | | ?????????????????????????????????????????????????? | | ?????????????????????????????????????????????????? | | ?????????????????????????????????????????????????? | +----------------------------------------------------+ Best States ------------- Heat Dissipation 28 Energy Generation 10 Energy Capacity 250 Matter Stores 300 Matter Capacity 300 Sight Range 16 Terrain Scan Density 10 Evasion (%) 50 Targeting Accuracy 5 Item Schematics ----------------- None Robot Schematics ------------------ None Fabricated ------------ Nothing Alien Tech Used ----------------- None Achievements -------------- None Challenges ------------ None Game ------ Seed HelicalHypervelocityFlakker Manual? 0 Play Time 00:04:12 Cumulative 18.1 hours Start 2019.10.25 @ 17:24:55 End 2019.10.26 @ 11:47:46 Sessions 3 Manual Loads 0 Difficulty Rogue Special Mode None Game No. 23 Rogue 23 Adventurer 0 Explorer 0 Win Type - Total 0 Types 0/0/0/0/0/0/0 Lore% 26 Gallery% 29 Achievement% 28 Wizard Run 0 Options --------- ASCII 0 Keyboard 0 Movement Numpad Keybinds 0 Fullscreen 1 Font 16/Terminus Map View 76x50 Tactical HUD 1 Map Filters NONE Filters NONE Steam 1 RUN: 6d7a4f69-cbf9-4fb4-99cf-1f17c15303d4